Cogmind - Beta 13 --- EXPLORER MODE // 2024.08.01 @ 15:39:50 // Winter2019/RPGLIKE Player: DeepestRoots Result: Self-destructed Performance ------------- Evolutions (0) 0 Regions Visited (4) 800 Robots Destroyed (17) 85 Value Destroyed (188) 188 Prototype IDs (26) 520 Alien Tech Used (0) 0 Bonus (300) 300 TOTAL SCORE: 1893 Bonus ------- Aligned with FarCom 300 Cogmind --------- Core Integrity 600/600 Matter 300/300 Energy 1624/1625 System Corruption 0% Temperature Cool (3) Movement Flying (34) Location -9/Mines Parts ------- > --- POWER (1) -------- Light Ion Engine > --- PROPULSION (3) --- Flight Unit Flight Unit Flight Unit > --- UTILITY (3) ------ Superbattery Experimental Sensor Array Advanced Targeting Computer > --- WEAPON (1) ------- Longsword +1 > --- INVENTORY (1) ---- Grenade Launcher Peak State ------------ > --- POWER ------------ Light Ion Engine > --- PROPULSION ------- Flight Unit Flight Unit Flight Unit > --- UTILITY ---------- Superbattery Experimental Sensor Array Advanced Targeting Computer > --- WEAPON ----------- Longsword +1 > --- INVENTORY -------- Grenade Launcher [Rating: 34] Favorites ----------- Power Light Ion Engine Engine Light Ion Engine Propulsion Flight Unit Wheel Wheel Flight Unit Flight Unit Utility Light Armor Plating Device Experimental Sensor Array Storage Superbattery Processor Targeting Computer Protection Light Armor Plating Weapon EM Pulse Gun Energy Gun EM Pulse Gun Launcher Grenade Launcher Slashing Weapon Longsword +1 Build | -11 -10 -10 -10 -9 ------- Run | Yrd Mat Min Exi Min Slots Evolved 4 | 2 . 2 . . Power . | . . . . . Propulsion 2 | 1 . 1 . . Utility 2 | 1 . 1 . . Weapon . | . . . . . Parts Attached 17 | 7 3 5 1 1 Power 1 | 1 . . . . Engine 1 | 1 . . . . Core . | . . . . . Reactor . | . . . . . Propulsion 6 | 2 3 1 . . Treads . | . . . . . Leg . | . . . . . Wheel 2 | 2 . . . . Hover . | . . . . . Flight 4 | . 3 1 . . Utility 7 | 3 . 3 1 . Device 2 | 1 . 1 . . Storage 1 | . . . 1 . Processor 2 | 1 . 1 . . Hackware . | . . . . . Protection 2 | 1 . 1 . . Artifact . | . . . . . Weapon 3 | 1 . 1 . 1 Energy Gun 1 | 1 . . . . Energy Cannon . | . . . . . Ballistic Gun . | . . . . . Ballistic Cannon . | . . . . . Launcher 1 | . . 1 . . Special Weapon . | . . . . . Impact Weapon . | . . . . . Slashing Weapon 1 | . . . . 1 Piercing Weapon . | . . . . . Special Melee Weapon . | . . . . . Unidentified Prototypes 1 | . . 1 . . Parts Lost . | . . . . . Power . | . . . . . Propulsion . | . . . . . Utility . | . . . . . Weapon . | . . . . . Highest Loss Streak . | . . . . . To Critical Strikes . | . . . . . Average Slot Usage (%) 99 | . 100 99 100 100 Engine 13 | . 16 12 12 12 Wheel 2 | . 5 . . . Flight 33 | . 27 37 37 37 Device 2 | . . 1 12 12 Storage 1 | . . . 7 12 Processor 13 | . 16 12 12 12 Protection 15 | . 16 21 4 . Energy Gun 11 | . 16 11 . . Launcher 2 | . . 1 12 7 Naked Turns . | . . . . . Heaviest Build 11 | 9 8 11 11 11 Greatest Support 20 | 20 20 12 12 12 Greatest Overweight (x) 2 | 2 . . . . Average Overweight (x) . | . . . . . Largest Inventory Capacity 1 | 1 1 1 1 1 Average Capacity 1 | 1 1 1 1 1 Most Carried 1 | 1 1 1 1 1 Average Carried . | . . . . 1 Final Capacity 1 | 1 1 1 1 1 Final Carried 1 | . 1 1 1 1 Class Distribution -------------------- 94% | Wizard-Mutant 5% | Wizard-Scout Dominant Class ---------------- Wizard-Mutant | -10/Materials Wizard-Mutant | -10/Mines Wizard-Mutant | -10/Exiles Wizard-Scout | -9/Mines Resources | -11 -10 -10 -10 -9 ----------- Run | Yrd Mat Min Exi Min Matter Collected 370 | 270 30 50 . 20 Remotely . | . . . . . Salvage Created 405 | 80 197 109 . 19 Parts 35 | 8 17 8 . 2 Haulers Intercepted 1 | . 1 . . . Recyclers Shooed 1 | . 1 . . . Parts Field Recycled . | . . . . . Retrieved Matter . | . . . . . Parts Self-Destructed . | . . . . . Prevented . | . . . . . Kills | -11 -10 -10 -10 -9 ------- Run | Yrd Mat Min Exi Min Combat Hostiles Destroyed 14 | . 6 8 . . Guns 12 | . 6 6 . . AOE 1 | . . 1 . . Classes Destroyed 9 | 2 4 3 . . Worker 1 | . . 1 . . Builder 1 | . 1 . . . Tunneler 3 | 1 1 . . 1 Hauler 1 | . 1 . . . Recycler 1 | 1 . . . . Watcher 1 | . 1 . . . Swarmer 8 | . 6 2 . . Grunt 1 | . . 1 . . Assembled 5 | . . 5 . . Best Kill Streak 4 | 2 3 4 . 1 Combat Bots Only 4 | . 2 4 . . Max Kills in Single Turn 1 | 1 1 1 . 1 Gunslinging . | . . . . . Exploded 1 | . . 1 . . Melee . | . . . . . Uniques/NPCs Destroyed . | . . . . . Combat | -11 -10 -10 -10 -9 -------- Run | Yrd Mat Min Exi Min Hostile Shots Fired 37 | . 15 22 . . Missed 15 | . 6 9 . . Damage Taken 152 | . 43 109 . . Core 86 | . 31 55 . . Absorbed by Shields . | . . . . . Redirected to Core 56 | . 15 41 . . Ignored by Resistances 97 | . 31 66 . . Core Remaining (%) 100 | 100 . . . . Volleys Fired 73 | 3 40 30 . . Largest 1 | 1 1 1 . . Hottest 40 | 40 40 40 . . Shots Fired 73 | 3 40 30 . . Gun 73 | 3 40 30 . . Cannon . | . . . . . Launcher . | . . . . . Special . | . . . . . Kinetic . | . . . . . Thermal . | . . . . . Explosive . | . . . . . Electromagnetic 73 | 3 40 30 . . Robot Hit Streak 17 | 3 11 17 . . Robot Miss Streak 2 | . 1 2 . . Penetration Max . | . . . . . Secondary Targets . | . . . . . Shots Hit Robots 59 | 3 29 26 . 1 Core Hits 26 | 3 10 13 . . Critical Kills . | . . . . . Critical Parts Destroyed . | . . . . . Critical Strikes 1 | . . 1 . . Corrupt 1 | . . 1 . . Melee Attacks 1 | . . . . 1 Impact . | . . . . . Slashing 1 | . . . . 1 Piercing . | . . . . . Sneak Attacks 1 | . . . . 1 Combat Hostiles . | . . . . . Follow-up Attacks . | . . . . . Damage Inflicted 829 | 38 395 313 . 83 Guns 722 | 38 395 289 . . Cannons . | . . . . . Explosions 24 | . . 24 . . Melee 83 | . . . . 83 Ramming . | . . . . . Kinetic . | . . . . . Thermal 24 | . . 24 . . Explosive . | . . . . . Electromagnetic 722 | 38 395 289 . . Impact . | . . . . . Slashing 83 | . . . . 83 Piercing . | . . . . . Highest Corruption . | . . . . . Average Corruption . | . . . . . Corruption Purged . | . . . . . Corruption Blocked . | . . . . . Overload Shots . | . . . . . Overflow Damage 43 | . . . . 43 Projectiles . | . . . . . Explosions . | . . . . . Melee 43 | . . . . 43 Knockbacks . | . . . . . Impact . | . . . . . Kinetic . | . . . . . Secondary . | . . . . . Self-Inflicted Damage . | . . . . . Shots . | . . . . . Rammed . | . . . . . Targets Rammed . | . . . . . Kicked . | . . . . . Crushed . | . . . . . Highest Temperature 163 | 12 80 163 . . Average Temperature 51 | 6 23 67 . . Received Heat Transfer 121 | . . 121 . . Siege Activations . | . . . . . Robots Corrupted 2 | . 1 1 . . Combat Hostiles 1 | . . 1 . . Parts Fried 3 | . 2 1 . . Impact Corruptions . | . . . . . Robots Melted . | . . . . . Combat Hostiles . | . . . . . Parts Melted . | . . . . . Heat Transferred 50 | . . 50 . . Parts Sabotaged . | . . . . . Parts Stolen . | . . . . . Parts Stripped . | . . . . . Power Chain Reactions 1 | . . 1 . . Alert | -11 -10 -10 -10 -9 ------- Run | Yrd Mat Min Exi Min Peak Influence 229 | 10 229 128 . 5 Initial 9 | . 4 9 . . Average 75 | 4 120 48 . 2 Maximum Alert Level 1 | . 1 . . . Low Security (%) 94 | 100 88 100 . 100 Level 1 5 | . 11 . . . Level 2 . | . . . . . Level 3 . | . . . . . Level 4 . | . . . . . Level 5 . | . . . . . High Security . | . . . . . Max Security . | . . . . . Squads Dispatched 1 | . . 1 . . Investigation 1 | . . 1 . . Extermination . | . . . . . Reinforcement . | . . . . . Assault . | . . . . . Garrison . | . . . . . Intercept . | . . . . . Searches Triggered . | . . . . . Construction Impeded . | . . . . . Haulers Reinforced . | . . . . . Active Scanning Responses . | . . . . . Cargo Convoy Interrupts . | . . . . . Stealth | -11 -10 -10 -10 -9 --------- Run | Yrd Mat Min Exi Min Distress Signals . | . . . . . Communications Jammed . | . . . . . Distress Signals . | . . . . . Times Spotted 21 | . 10 11 . . Peak Tracking Total 4 | . 3 4 . . Tactical Retreats 3 | . 2 1 . . Traps | -11 -10 -10 -10 -9 ------- Run | Yrd Mat Min Exi Min Traps Triggered . | . . . . . Indirectly . | . . . . . Trap Hack Attempts . | . . . . . Triggered . | . . . . . Disarmed . | . . . . . Reprogrammed 13 | . 13 . . . Reused 4 | . 4 . . . Traps Extracted . | . . . . . Installed . | . . . . . Triggered 4 | . 4 . . . Machines | -11 -10 -10 -10 -9 ---------- Run | Yrd Mat Min Exi Min Machines Disabled 1 | . 1 . . . Max in Single Turn 1 | . 1 . . . Machines Repaired . | . . . . . Machines Dismantled . | . . . . . Machines Sabotaged . | . . . . . Overloaded Fab Kills . | . . . . . Hacking | -11 -10 -10 -10 -9 --------- Run | Yrd Mat Min Exi Min Machines Accessed 11 | . 8 1 2 . Terminals 8 | . 8 . . . Fabricators . | . . . . . Repair Stations . | . . . . . Recycling Units . | . . . . . Scanalyzers . | . . . . . Garrison Access . | . . . . . Total Hacks 41 | . 37 1 3 . Successful 32 | . 28 1 3 . Failed 9 | . 9 . . . Catastrophic . | . . . . . Database Lockouts . | . . . . . Manual 12 | . 11 . 1 . Terminals 37 | . 37 . . . Fabricators . | . . . . . Repair Stations . | . . . . . Recycling Units . | . . . . . Scanalyzers . | . . . . . Garrison Access . | . . . . . Terminal Hacks 29 | . 25 1 3 . Record 3 | . 1 . 2 . Robot Analysis 6 | . 6 . . . Prototype ID Bank 1 | . 1 . . . Open Door 1 | . . 1 . . Level Access Points 1 | . 1 . . . Branch Access Points 1 | . 1 . . . Emergency Access Points 1 | . 1 . . . Unreport Threat 2 | . 2 . . . Locate Traps 3 | . 3 . . . Reprogram Traps 3 | . 3 . . . Hauler Manifests 1 | . 1 . . . Registered Components 1 | . 1 . . . Registered Prototypes 1 | . 1 . . . Zone Layout 3 | . 3 . . . Derelict Proto ID Bank 1 | . . . 1 . Fabricator Hacks . | . . . . . Repair Station Hacks . | . . . . . Recycling Unit Hacks . | . . . . . Scanalyzer . | . . . . . Garrison Access Hacks . | . . . . . Unauthorized Hacks 3 | . 3 . . . Terminals 3 | . 3 . . . Track 1 | . 1 . . . Botnet 2 | . 2 . . . Fabricators . | . . . . . Repair Stations . | . . . . . Recycling Units . | . . . . . Scanalyzers . | . . . . . Garrison Access . | . . . . . Data Cores Recovered . | . . . . . Used . | . . . . . Hacking Detections 4 | . 4 . . . Full Trace Events . | . . . . . Feedback Events . | . . . . . Feedback Blocked . | . . . . . Robot Schematics Acquired . | . . . . . Robots Built . | . . . . . Authchips . | . . . . . Time . | . . . . . Total Robot Build Rating . | . . . . . Part Schematics Acquired . | . . . . . Parts Built . | . . . . . Authchips . | . . . . . Time . | . . . . . Total Part Build Rating . | . . . . . Parts Repaired . | . . . . . Time . | . . . . . Parts Recycled . | . . . . . Recycled Matter . | . . . . . Retrieved Matter . | . . . . . Retrieved Components . | . . . . . Parts Scanalyzed . | . . . . . Part Schematics Acquired . | . . . . . Parts Damaged . | . . . . . Bothacking | -11 -10 -10 -10 -9 ------------ Run | Yrd Mat Min Exi Min Used RIF Installer . | . . . . . Robots Hacked . | . . . . . Non-combat . | . . . . . Combat . | . . . . . Robot Hacks Applied . | . . . . . Relay Couplers Released . | . . . . . Fabnet Peak Effective % . | . . . . . Robots Rewired . | . . . . . Allies Hacked . | . . . . . Hacks Repelled . | . . . . . Allies | -11 -10 -10 -10 -9 -------- Run | Yrd Mat Min Exi Min Total Allies . | . . . . . Largest Group . | . . . . . Highest-Rated Group . | . . . . . Highest-Rated Ally . | . . . . . Total Orders . | . . . . . Ally Attacks . | . . . . . Total Damage . | . . . . . Kills . | . . . . . Allies Corrupted . | . . . . . Allies Melted . | . . . . . Intel | -11 -10 -10 -10 -9 ------- Run | Yrd Mat Min Exi Min Robot Analysis Total 6 | . 6 . . . Derelict Logs Recovered 3 | . . 2 . 1 Drone Launches . | . . . . . Drone Recoveries . | . . . . . Exploration | -11 -10 -10 -10 -9 ------------- Run | Yrd Mat Min Exi Min Turns Passed 974 | 65 390 357 115 47 Spaces Moved 1912 | 45 673 747 326 121 Core 26 | 26 . . . . Treads . | . . . . . Legs . | . . . . . Wheels 60 | 19 41 . . . Hover . | . . . . . Flight 1826 | . 632 747 326 121 Fastest Speed 34 | 50 37 34 34 34 Average Speed 37 | 103 39 34 34 34 Slowest Speed 150 | 150 80 37 34 34 Overloaded Moves . | . . . . . Propulsion Burnouts . | . . . . . Robots Hopped 5 | . 2 3 . . Cave-ins Triggered . | . . . . . Exploration Rate (%) 60 | 4 98 98 74 28 Regions Visited 4 Branch Regions 3 Pre-discovered Areas 1 | . . . 1 . Known Exits Taken 4 | 1 1 1 1 . Unknown Exits Taken . | . . . . . Scrap Searched 1 | . . . . 1 Spaces Dug . | . . . . . Terrain Destroyed 4 | . . 4 . . Melee . | . . . . . Projectile . | . . . . . AOE 4 | . . 4 . . Terrain Rammed . | . . . . . Walls Destroyed . | . . . . . Machines Disabled . | . . . . . Actions | -11 -10 -10 -10 -9 --------- Run | Yrd Mat Min Exi Min Total 2081 | 57 754 816 329 125 Wait 46 | . 26 18 . 2 Move 1899 | 44 668 741 325 121 Hop 4 | . 2 2 . . Pick Up 11 | 1 4 5 1 . Fast Attach 11 | 7 2 1 1 . Attach 2 | . . 2 . . Detach . | . . . . . Swap 4 | . 1 2 . 1 Drop 13 | 2 5 4 2 . Fire 73 | 3 40 30 . . Melee 1 | . . . . 1 Ram . | . . . . . Kick . | . . . . . Crush . | . . . . . Escape Stasis . | . . . . . Rewire . | . . . . . Trap . | . . . . . Miscellaneous 17 | . 6 11 . . Route ------- -11/Scrapyard -10/Materials (discovered 4 exits: *Mat x3 / *Min) -10/Mines (discovered 3 exits: *Mat x2 / *Exi) -10/Exiles -9/Mines History --------- Turn | Location | Event 1 | -11/Scrapyard | Upgraded with Propulsion slot (x1) 1 | -11/Scrapyard | Upgraded with Utility slot (x1) 22 | -11/Scrapyard | Identified exit to Materials 22 | -11/Scrapyard | Discovered exit to Materials (range 16) 66 | -11/Scrapyard | Entered Materials 138 | -10/Materials | Identified exit to Mines 138 | -10/Materials | Discovered exit to Mines (range 9) 148 | -10/Materials | Identified exit to Materials 148 | -10/Materials | Discovered exit to Materials (range 6) 310 | -10/Materials | Build established: Wizard-Mutant 456 | -10/Materials | Entered Mines 458 | -10/Mines | Reached level 2 458 | -10/Mines | Upgraded with Propulsion slot (x1) 463 | -10/Mines | Learned location of 1 exit from Materials 463 | -10/Mines | Discovered exit to Materials (range 11) 464 | -10/Mines | Assembled infested the area 487 | -10/Mines | Met a Derelict bent on vengeance 498 | -10/Mines | Joined a pair of Derelicts in attacking an 0b10 outpost 511 | -10/Mines | Upgraded with Utility slot (x1) 573 | -10/Mines | Discovered exit to Materials (range 15) 600 | -10/Mines | A weapon hastily lodged in a ceiling crevice suddenly fell to the ground 608 | -10/Mines | Learned Materials terminal intel 614 | -10/Mines | Found a hidden stash of uninstalled traps 699 | -10/Mines | Found a damaged Exp. Sensor Array with a note attached 703 | -10/Mines | Deemed a non-threat by the Exiles lab entrance 703 | -10/Mines | Identified exit to Exiles 703 | -10/Mines | Discovered exit to Exiles (range 5) 718 | -10/Mines | Met a Derelict shopkeep closing up shop 742 | -10/Mines | Found Prototype Device 761 | -10/Mines | Identified Exp. Sensor Array 813 | -10/Mines | Entered Exiles 822 | -10/Exiles | Met 8R-AWN 828 | -10/Exiles | Met EX-HEX 837 | -10/Exiles | Met EX-BIN 846 | -10/Exiles | Aligned with FarCom system 846 | -10/Exiles | Given EX-Vault access code 854 | -10/Exiles | Opened EX-Vault 857 | -10/Exiles | Found Superbattery 860 | -10/Exiles | Found Longsword +1 867 | -10/Exiles | Warned to stay clear of 0b10 Research branches 876 | -10/Exiles | Met EX-DEC 891 | -10/Exiles | Visited The Gauntlet 908 | -10/Exiles | Learned location of Zion (-7) 924 | -10/Exiles | Identified exit to Mines 924 | -10/Exiles | Discovered exit to Mines (range 11) 928 | -10/Exiles | Stole two prototypes: Superbattery, Longsword +1 928 | -10/Exiles | Entered Mines 930 | -9/Mines | Reached level 3 974 | -9/Mines | Learned Materials terminal intel 975 | -9/Mines | Self-destructed Last Messages --------------- GOAL=ESCAPE 00928_ Receiving FarCom transmissions... 00929_ K-01 Serf collects debris. 00930_ Reached level 3. 00931_ K-01 Serf cleans the Core Extractor. 00936_ Upgraded: Sensor Range (+2) 00937_ Upgraded: Sensor Range (+6) 00938_ Upgraded: Sensor Range (+4) 00939_ K-01 Serf collects debris. 00954_ Sneak attack on T-07 Excavator. 00954_ Destroyed Wheel. 00954_ T-07 Excavator destroyed. 00956_ Acquired 19 matter. 00967_ Searching scrap... 00967_ Found Hrd. Light Armor Plating. 00967_ Found Weight Redist. System. 00967_ Found 19 Matter. 00968_ Acquired 1 matter. 00974_ Acquired derelict log, extracted data. Data stored: Materials terminal intel. Map ----- +----------------------------------------------------+ | ????????????????????????????????????????? | | ????????????????????????????????????????? | | ????????????????????????????????????????? | | ????????????????????????????????????????? | | ????????????????????????????????????????? | | ????????????????????????????????????????? | | ????????????????????????????????????????? | | ???????????????? ??????????????????????? | | ???????????????? ??????????????????????? | | ???????????????? ??????????????????????? | | ???????????????? ??????????????????????? | | ???????????????? ??????????????????????? | | ???????????????? ??????????????????????? | | ???????????????? ??????????????????????? | | ???????????????# ??????????????????????? | | ???????????????# ??????????????????????? | | ???????????????# ??????????????????????? | | ???????????????# ??????????????????????? | | ???????????????# #??????????????????????? | | ????####???????# #??????????????????????? | | ???## ##??????# #??????????????????????? | | ??## #??????# #??????????????????????? | | ?## %! #??????# #??????????????????????? | | ?# !##??????# #??????????????????????? | | ?# #???????# #???????????s??????????? | | ?## #########@#??????????????????????? | | ??# ## #???????????s??????????? | | ??# ! #??????????????????????? | | ??# ######??????????????????????? | | ??# ######??????????????????????? | | ??# ### ### ??????????????????????? | | ??# ##?# ##?# ???????????????????????? | | ??# #### #??# #???????????????????????? | | ??# ? #??# #???????????????????????? | | ??# ######### #???????????????????????? | | ??# #???## # #???????????????????????? | | ??# #?### ###?????????????????????? | | ??# ### ##????????????????????? | | ??# ## ####?????????????????? | | ??# ! #?????????????##### | | ??## = ##C#?????????????# | | ???# ### #?????????????# ## | | ???## #?# ############### #? | | ????## ## ? #? | | ?????# ## ################## #? | | ????# #### #????????????????# ?#? | | ????# #??## #????????????????# #? | | ???# #???## #???????????????? ? | | ???# #????# #??????????????? # | | ???## ##????# ??????????????? # | +----------------------------------------------------+ Best States ------------- Heat Dissipation 25 Energy Generation 10 Energy Capacity 1625 Matter Stores 300 Matter Capacity 300 Sight Range 16 Robot Scan Range 32 Terrain Scan Density 10 Armor Coverage 300 Resistance: KI 35 Resistance: TH 35 Resistance: EX 35 Resistance: EM 35 Resistance: I 35 Resistance: S 35 Resistance: P 35 Evasion (%) 63 Targeting Accuracy 8 Offensive Hacking 40 Defensive Hacking 20 Item Schematics ----------------- None Robot Schematics ------------------ None Fabricated ------------ Nothing Alien Tech Used ----------------- None Achievements -------------- None Challenges ------------ None RPGLIKE | -11 -10 -10 -10 -9 --------- Run | Yrd Mat Min Exi Min Levels Raised 2 | . . 1 . 1 XP Earned 9143 | 6000 1050 900 350 843 XP Spent 8125 | 5850 . 1600 . 675 Upgrades 19 | 11 . 2 . 6 Propulsion Slot 2 | 1 . 1 . . Utility Slot 2 | 1 . 1 . . Inventory Capacity 1 | 1 . . . . Sensor Range 6 | . . . . 6 Hack Attack % 4 | 4 . . . . Hack Defense % 4 | 4 . . . . Protomatter Created 132 | . 37 95 . . Integrity Restored 235 | . 55 180 . . Core 86 | . 31 55 . . Parts 149 | . 24 125 . . Protomatter Decayed 103 | . 16 87 . . Game ------ Seed SiegeAlloyScreen Manual? 0 Play Time 00:30:12 Cumulative 230.2 hours Start 2024.08.01 @ 15:08:04 End 2024.08.01 @ 15:39:50 Sessions 1 Manual Loads 0 Difficulty Explorer Special Mode Winter2019/RPGLIKE Game No. 18 Rogue 8 Adventurer 6 Explorer 4 Win Type - Total 14 Types 12/0/0/1/0/1/0/0/0 Lore% 50 Gallery% 58 Achievement% 63 Wizard Run 0 Options --------- Layout 0 ASCII 0 Keyboard 0 Movement Mouse Keybinds 0 Fullscreen 1 Font 36/Terminus++ Map View 76x50 Zoom Use 0% Tactical HUD 1 Map Filters NONE Filters NONE Steam 0 RUN: 6b12d600-c8c9-4287-8b47-080c21cb9af1